Cogmind - Beta 16 @@@ ROGUE MODE // 2025.12.07 @ 13:06:26 Player: Ae Result: Destroyed by G-47 Trooper with Particle Gun Performance ------------- Evolutions (2) 1000 Regions Visited (8) 1600 Robots Destroyed (84) 420 Value Destroyed (2945) 2945 Prototype IDs (39) 780 Alien Tech Used (0) 0 Bonus (2278) 2278 TOTAL SCORE: 9023 Bonus ------- High Alert Combat Kills 313 Follower Combat Kills 265 Entered Garrisons 400 Used RIF Installer 1000 Aligned with FarCom 300 Cogmind --------- Core Integrity 0/550 Matter 265/300 Energy 140/150 System Corruption 22% Temperature Cool (9) Movement Rolling (115) Ox1 Location -8/Garrison Parts ------- > --- POWER (1) -------- Micro Nuclear Core > --- PROPULSION (2) --- Armored Huge Wheel > --- UTILITY (6) ------ Improved Heat Sink High-capacity Storage Unit Machine Analyzer Advanced Visual Processing Unit Target Analyzer Relay Coupler [Swarmer] (15) > --- WEAPON (2) ------- Shock Rifle > --- INVENTORY (20) --- Reinforced Ion Engine Scrap Suit Advanced Heat Sink Hacking Suite System Shield Relay Coupler [NC] (31) Relay Coupler [NC] (29) Relay Coupler [Swarmer] (28) Relay Coupler [Swarmer] (26) Trap Reconfigurator Heavy Ion Cannon Improved Grenade Launcher Datajack Remote Datajack Peak State ------------ > --- POWER ------------ Micro Nuclear Core > --- PROPULSION ------- Armored Huge Wheel > --- UTILITY ---------- Improved Heat Sink High-capacity Storage Unit Machine Analyzer Advanced Visual Processing Unit Kinecellerator Relay Coupler [Swarmer] > --- WEAPON ----------- Shock Rifle Heavy Ion Cannon > --- INVENTORY -------- Scrap Suit Improved Heat Sink Advanced Heat Sink Machine Analyzer Target Analyzer Hacking Suite System Shield Relay Coupler [NC] Relay Coupler [NC] Relay Coupler [Swarmer] Relay Coupler [Swarmer] Relay Coupler [Grunt] Trap Reconfigurator Shock Rifle Improved Grenade Launcher Datajack Remote Datajack Greatsword [Rating: 42] Favorites ----------- Power Light Ion Engine Engine Light Ion Engine Power Core Micro Nuclear Core Propulsion Compact Wheel Treads Advanced Treads Wheel Compact Wheel Utility High-capacity Storage Unit Device Seismic Detector Storage High-capacity Storage Unit Processor Machine Analyzer Hackware Relay Coupler [Swarmer] Protection Hardened Medium Armor Plating Weapon Heavy Battle Rifle Energy Gun Medium Laser Energy Cannon Particle Cannon Ballistic Gun Heavy Battle Rifle Ballistic Cannon Advanced Assault Cannon Launcher Improved Grenade Launcher Special Weapon Remote Datajack Impact Weapon Flail Slashing Weapon Greatsword Special Melee Weapon Datajack Build | -11 -10 -10 -10 -9 -8 -8 -8 -8 ------- Run | Yrd Mat Min Exi Min Mat Gar Mat Gar Slots Evolved 4 | . . . . . 4 . . . Power . | . . . . . . . . . Propulsion . | . . . . . . . . . Utility 4 | . . . . . 4 . . . Weapon . | . . . . . . . . . Parts Attached 60 | 7 1 5 3 . 19 10 2 13 Power 5 | 1 . . 1 . . 2 . 1 Engine 4 | 1 . . 1 . . 2 . . Core 1 | . . . . . . . . 1 Reactor . | . . . . . . . . . Propulsion 9 | 2 . 1 . . 4 2 . . Treads 2 | . . . . . 2 . . . Leg . | . . . . . . . . . Wheel 7 | 2 . 1 . . 2 2 . . Hover . | . . . . . . . . . Flight . | . . . . . . . . . Utility 25 | 2 1 1 1 . 11 2 1 6 Device 11 | 1 . 1 . . 5 1 . 3 Storage 3 | 1 1 . 1 . . . . . Processor 4 | . . . . . 3 . . 1 Hackware 2 | . . . . . . . . 2 Protection 5 | . . . . . 3 1 1 . Artifact . | . . . . . . . . . Weapon 21 | 2 . 3 1 . 4 4 1 6 Energy Gun 4 | 1 . . . . 1 . . 2 Energy Cannon 3 | . . . . . 1 1 . 1 Ballistic Gun 6 | 1 . 2 . . 2 1 . . Ballistic Cannon 2 | . . . . . . 1 1 . Launcher 2 | . . 1 . . . . . 1 Special Weapon 1 | . . . . . . . . 1 Impact Weapon 1 | . . . . . . 1 . . Slashing Weapon 1 | . . . . . . . . 1 Piercing Weapon . | . . . . . . . . . Special Melee Weapon 1 | . . . 1 . . . . . Unidentified Prototypes 2 | . . . . . 2 . . . Corrupted Parts 2 | . . . . . . 2 . . System Corruption 11 | . . . . . . 11 . . Parts Lost 24 | . . 2 . 1 6 5 1 9 Power 4 | . . . . . 1 2 . 1 Propulsion 5 | . . 1 . . 1 1 . 2 Utility 8 | . . . . 1 3 1 1 2 Weapon 7 | . . 1 . . 1 1 . 4 Highest Loss Streak 4 | . . 2 . 1 2 1 1 4 To Critical Strikes . | . . . . . . . . . Average Backups 14 | 4 6 9 10 13 16 17 17 16 Power 1 | . 1 1 3 4 3 1 . . Propulsion 1 | 3 3 2 1 1 . 1 2 . Utility 7 | . . 3 4 6 7 9 11 11 Weapon 2 | . 1 1 1 1 3 3 2 3 Tool/Special . | . . . . . . . . . Unused Backups 27 | . 2 2 . . 6 7 . 10 Power 4 | . . . . . . 3 . 1 Propulsion 3 | . 2 1 . . . . . . Utility 14 | . . . . . 3 3 . 8 Weapon 5 | . . 1 . . 3 1 . . Tool/Special 1 | . . . . . . . . 1 Average Slot Usage (%) 97 | . 100 100 100 100 97 99 88 82 Engine 9 | . 14 14 14 14 9 8 9 . Treads 2 | . . . . . 1 6 . . Wheel 17 | . 28 28 28 28 15 10 9 8 Device 12 | . 14 14 14 14 14 9 9 11 Storage 10 | . 14 14 14 14 9 9 9 9 Processor 15 | . . . . . 20 27 27 19 Protection 4 | . . . . . 8 9 7 . Energy Gun 4 | . 14 13 . 12 1 . . 5 Energy Cannon 1 | . . . . . 6 . . 3 Ballistic Gun 10 | . 14 14 14 14 9 10 9 1 Ballistic Cannon 2 | . . . . . . 7 9 . Special Melee Weapon 2 | . . . 13 . . . . 2 Peak Build Rating 42 | 7 7 10 13 14 32 41 39 42 Average Rating 24 | 5 7 8 12 13 27 35 38 37 On Entrance 17 | . 7 7 10 13 14 32 39 38 Avg Prop Armor Cover (%) 7 | . . . . . 9 7 . . Naked Turns . | . . . . . . . . . Heaviest Build 65 | 13 18 20 51 52 60 65 64 62 Greatest Support 32 | 26 26 26 26 26 32 28 28 28 Greatest Overweight (x) 16 | . . . 1 1 3 5 2 16 Average Overweight (x) 1 | . . . . 1 2 4 2 1 Largest Inventory Capacity 20 | 8 10 10 20 20 20 20 20 20 Average Capacity 17 | 7 9 10 17 20 20 20 20 20 Most Carried 20 | 6 9 10 12 15 20 20 20 20 Average Carried 15 | 4 6 9 10 13 17 19 19 18 Final Capacity 20 | 8 10 10 20 20 20 20 20 20 Final Carried 20 | 6 9 8 12 15 20 20 20 15 Class Distribution -------------------- 38% | Mutant 36% | Skirmisher 15% | Bothacker-Skirmisher 4% | Bothacker-Assassin 3% | Scavenger-Skirmisher Dominant Class ---------------- Mutant | -10/Materials Mutant | -10/Mines Mutant | -10/Exiles Mutant | -9/Mines Skirmisher | -8/Materials Skirmisher | -8/Garrison Bothacker-Skirmisher | -8/Materials Bothacker-Skirmisher | -8/Garrison Resources | -11 -10 -10 -10 -9 -8 -8 -8 -8 ----------- Run | Yrd Mat Min Exi Min Mat Gar Mat Gar Matter Collected 2791 | 250 66 242 . 93 624 771 271 474 Remotely . | . . . . . . . . . Salvage Created 3051 | 160 85 109 . 30 1001 935 272 459 Parts 148 | 7 8 4 . 2 45 52 11 19 Haulers Intercepted 1 | . . . . . . . 1 . Recyclers Shooed . | . . . . . . . . . Parts Field Recycled . | . . . . . . . . . Retrieved Matter . | . . . . . . . . . Parts Self-Destructed . | . . . . . . . . . Prevented . | . . . . . . . . . Parts Restored . | . . . . . . . . . Kills | -11 -10 -10 -10 -9 -8 -8 -8 -8 ------- Run | Yrd Mat Min Exi Min Mat Gar Mat Gar Combat Hostiles Destroyed 70 | . 3 4 . 1 20 25 8 9 Melee 1 | . . . . . . . . 1 Guns 32 | . 3 2 . 1 10 9 4 3 Cannons 28 | . . . . . 5 16 4 3 AOE 9 | . . 2 . . 5 . . 2 Classes Destroyed 14 | 2 3 1 . . 4 . 2 2 Worker 1 | . 1 . . . . . . . Builder 2 | . . . . . 2 . . . Tunneler 4 | 4 . . . . . . . . Hauler 1 | . . . . . . . 1 . Recycler 4 | 1 . . . . 3 . . . Operator 1 | . 1 . . . . . . . Watcher 1 | . . . . . 1 . . . Swarmer 23 | . 3 2 . . 4 10 2 2 Grunt 31 | . . 2 . 1 9 11 4 4 Brawler 3 | . . . . . 2 . 1 . Duelist 1 | . . . . . . . 1 . Sentry 9 | . . . . . 5 4 . . Hunter 1 | . . . . . . . . 1 Programmer 2 | . . . . . . . . 2 Best Kill Streak 11 | 5 5 2 . 1 11 7 5 4 Combat Bots Only 8 | . 3 2 . 1 8 7 5 4 Max Kills in Single Turn 3 | 1 2 2 . 1 3 1 1 1 Gunslinging 1 | . 1 . . . . . . . Exploded 2 | . . 2 . . 2 . . 1 Melee 1 | . . . . . . . . 1 Uniques/NPCs Destroyed . | . . . . . . . . . Combat | -11 -10 -10 -10 -9 -8 -8 -8 -8 -------- Run | Yrd Mat Min Exi Min Mat Gar Mat Gar Hostile Shots Fired 385 | . 7 29 . 2 81 90 62 114 Missed 103 | . 2 8 . . 22 27 23 21 Hits 282 | . 5 21 . 2 59 63 39 93 Melee 1 | . . . . . 1 . . . Projectile 281 | . 5 21 . 2 58 63 39 93 Critical Strikes 9 | . . . . . 1 3 . 5 Damage Taken 3846 | . 51 304 . 31 857 873 472 1258 Core 660 | . 16 88 . . 98 131 71 256 Absorbed by Shields 27 | . . . . . . . . 27 Core Remaining (%) 79 | 100 . . . 58 . . . . Volleys Fired 231 | 17 5 20 . 3 56 65 30 35 Largest 2 | 2 2 2 . 2 2 2 2 2 Hottest 115 | 70 70 83 . 83 101 69 65 115 Shots Fired 413 | 34 10 39 . 4 102 123 57 44 Gun 251 | 34 10 38 . 2 53 70 28 16 Cannon 140 | . . . . . 39 53 29 19 Launcher 17 | . . 1 . 2 10 . . 4 Special 5 | . . . . . . . . 5 Kinetic 281 | 17 5 19 . 1 53 116 57 13 Thermal 97 | 17 5 19 . 1 39 . . 16 Explosive 17 | . . 1 . 2 10 . . 4 Electromagnetic 13 | . . . . . . 7 . 6 Robot Hit Streak 22 | 8 3 11 . 2 22 15 8 6 Robot Miss Streak 5 | 4 5 2 . . 5 4 5 3 Penetration Max . | . . . . . . . . . Secondary Targets 3 | . 1 . . . . 2 . . Max Gunslinging Chain 1 | . 1 . . . . 1 . . Shots Hit Robots 295 | 18 4 29 5 2 63 85 36 53 Core Hits 140 | 6 5 7 . 4 46 40 13 19 Critical Kills . | . . . . . . . . . Critical Parts Destroyed 1 | . . . . . 1 . . . Critical Strikes 8 | 1 . 1 . . 1 1 2 2 Burn 2 | 1 . 1 . . . . . . Destroy 1 | . . . . . 1 . . . Blast 3 | . . . . . . 1 2 . Sever 2 | . . . . . . . . 2 Melee Attacks 36 | . . . 5 . . 1 . 30 Impact 1 | . . . . . . 1 . . Slashing 12 | . . . . . . . . 12 Piercing . | . . . . . . . . . Sneak Attacks 18 | . . . 5 . . . . 13 Combat Hostiles . | . . . . . . . . . Follow-up Attacks . | . . . . . . . . . Damage Inflicted 7163 | 245 67 447 . 156 1992 1887 844 1525 Guns 2871 | 245 67 405 . 30 732 779 370 243 Cannons 2415 | . . . . . 556 1052 474 333 Explosions 1145 | . . 42 . 126 704 . . 273 Melee 732 | . . . . . . 56 . 676 Ramming . | . . . . . . . . . Kinetic 3792 | 132 30 219 . 17 732 1623 844 195 Thermal 1211 | 113 37 186 . 13 556 . . 306 Explosive 1145 | . . 42 . 126 704 . . 273 Electromagnetic 283 | . . . . . . 208 . 75 Impact 56 | . . . . . . 56 . . Slashing 676 | . . . . . . . . 676 Piercing . | . . . . . . . . . Highest Corruption 22 | . . . . . 6 17 17 22 Average Corruption 8 | . . . . . 4 6 17 21 Corruption Purged . | . . . . . . . . . Corruption Blocked . | . . . . . . . . . Effects 119 | . . . . . 19 56 15 29 Message Errors 31 | . . . . . 7 15 3 6 Matter Fused 32 | . . . . . 6 15 2 9 Heat Flow Errors 10 | . . . . . 1 6 2 1 Energy Discharges 7 | . . . . . . 3 1 3 Parts Rejected 1 | . . . . . . . . 1 Parts Fused 2 | . . . . . . 1 . 1 Data Loss (minor) 13 | . . . . . 2 7 . 4 Data Loss (major) 6 | . . . . . . 3 . 3 Misfires 5 | . . . . . 1 3 . 1 Alerts 3 | . . . . . . 2 1 . Misdirections 3 | . . . . . . . 3 . Weapon Failures 6 | . . . . . 2 1 3 . Overload Shots . | . . . . . . . . . Overflow Damage 60 | . . . . . 6 25 11 18 Projectiles 29 | . . . . . . 11 11 7 Explosions 6 | . . . . . 6 . . . Melee 25 | . . . . . . 14 . 11 Knockbacks 6 | . . . . . . 2 4 . Impact . | . . . . . . . . . Kinetic 6 | . . . . . . 2 4 . Secondary . | . . . . . . . . . Self-Inflicted Damage 46 | . . . . . 46 . . . Shots 2 | . . . . . 2 . . . Rammed . | . . . . . . . . . Targets Rammed . | . . . . . . . . . Kicked . | . . . . . . . . . Crushed . | . . . . . . . . . Highest Temperature 340 | 81 27 340 . 21 339 228 208 108 Average Temperature 75 | 39 12 155 . 8 43 93 105 21 Received Heat Transfer 1470 | . 15 159 . 18 351 414 144 369 Effects 1 | . . 1 . . . . . . Energy Bleed 1 | . . 1 . . . . . . Siege Activations . | . . . . . . . . . Martial Activations . | . . . . . . . . . Shielding Activations . | . . . . . . . . . Robots Disrupted . | . . . . . . . . . Combat Hostiles . | . . . . . . . . . Robots Corrupted 2 | . . . . . . 2 . . Combat Hostiles . | . . . . . . . . . Parts Fried 2 | . . . . . . 2 . . Impact Corruptions 1 | . . . . . . 1 . . Robots Melted . | . . . . . . . . . Combat Hostiles . | . . . . . . . . . Parts Melted 5 | 2 . 2 . . 1 . . . Heat Transferred 2493 | 407 111 629 . 37 999 . . 310 Parts Sabotaged . | . . . . . . . . . Parts Stolen . | . . . . . . . . . Parts Stripped . | . . . . . . . . . Power Chain Reactions . | . . . . . . . . . Alert | -11 -10 -10 -10 -9 -8 -8 -8 -8 ------- Run | Yrd Mat Min Exi Min Mat Gar Mat Gar Maximum Alert Level 3 | . . . . . 1 3 2 2 Low Security (%) 37 | 100 100 100 . 100 30 9 . . Level 1 18 | . . . . . 69 11 . 1 Level 2 28 | . . . . . . 37 100 98 Level 3 14 | . . . . . . 41 . . Level 4 . | . . . . . . . . . Level 5 . | . . . . . . . . . High Security . | . . . . . . . . . Max Security . | . . . . . . . . . Peak Influence 1074 | 5 74 95 . 74 300 1074 672 487 Initial 523 | . . . . . . 159 523 436 Average 332 | 1 26 15 . 26 185 597 562 469 Influence Increases 2607 | 25 97 181 . 84 724 965 249 282 Destroy 0b10 Robot/C 1580 | . 60 100 . 40 500 500 160 220 Destroy 0b10 Robot/NC 90 | 25 10 . . . 30 10 5 10 Destroy Leader 254 | . 10 20 . 10 112 30 42 30 Allied During Kill 50 | . . 19 . 8 19 . . 4 Trap Triggered on 0b10 20 | . . . . . . 20 . . Successful Hack 24 | . 17 . . . 2 . 5 . Disable Machine 60 | . . 15 . 15 15 . 15 . Anti-Garrison Action 400 | . . . . . . 400 . . Destroy Structure 99 | . . 12 . 11 46 5 7 18 Partial Spotted 15 | . . 15 . . . . . . Lose Combat Pursuer 15 | . . . . . . . 15 . Influence Decreases 2139 | 25 97 122 59 84 478 137 651 486 Entered New Map 933 | . . . 59 . . 87 551 236 Time Decay 756 | 25 97 112 . 74 358 . 90 . Lost Part 230 | . . 10 . 10 60 50 10 90 Lost Ally 220 | . . . . . 60 . . 160 Squads Dispatched 3 | . . . . . 1 . 2 . Investigation . | . . . . . . . . . Extermination . | . . . . . . . . . Reinforcement 2 | . . . . . 1 . 1 . Assault . | . . . . . . . . . Garrison 1 | . . . . . . . 1 . Intercept . | . . . . . . . . . Searches Triggered . | . . . . . . . . . Construction Impeded 1 | . . . . . . . 1 . Haulers Reinforced . | . . . . . . . . . Active Scanning Responses . | . . . . . . . . . Cargo Convoy Interrupts . | . . . . . . . . . Stealth | -11 -10 -10 -10 -9 -8 -8 -8 -8 --------- Run | Yrd Mat Min Exi Min Mat Gar Mat Gar Distress Signals 8 | . 1 . . . 5 . 2 . Communications Jammed . | . . . . . . . . . Distress Signals . | . . . . . . . . . Times Spotted 107 | . 9 6 . 2 34 26 14 16 Peak Tracking Total 6 | . 5 3 . 2 4 6 6 6 Tactical Retreats 1 | . . . . . . . 1 . Traps | -11 -10 -10 -10 -9 -8 -8 -8 -8 ------- Run | Yrd Mat Min Exi Min Mat Gar Mat Gar Traps Triggered 11 | . . . . . 1 8 . 2 Indirectly . | . . . . . . . . . Trap Hack Attempts . | . . . . . . . . . Triggered . | . . . . . . . . . Disarmed . | . . . . . . . . . Reprogrammed . | . . . . . . . . . Reused 2 | . . . . . . 2 . . Traps Reconfigurated 6 | . . . . . 1 5 . . Traps Extracted . | . . . . . . . . . Installed . | . . . . . . . . . Triggered 2 | . . . . . . 2 . . Machines | -11 -10 -10 -10 -9 -8 -8 -8 -8 ---------- Run | Yrd Mat Min Exi Min Mat Gar Mat Gar Machines Disabled 6 | . . 1 . 1 1 2 1 . Max in Single Turn 1 | . . 1 . 1 1 1 1 . Garrison Relay 2 | . . . . . . 2 . . Machines Repaired . | . . . . . . . . . Machines Dismantled . | . . . . . . . . . Machines Sabotaged . | . . . . . . . . . Overloaded Fab Kills . | . . . . . . . . . Hacking | -11 -10 -10 -10 -9 -8 -8 -8 -8 --------- Run | Yrd Mat Min Exi Min Mat Gar Mat Gar Machines Accessed 16 | . 3 . 5 . 3 3 2 . Terminals 8 | . 3 . . . 1 3 1 . Fabricators . | . . . . . . . . . Repair Stations . | . . . . . . . . . Recycling Units . | . . . . . . . . . Scanalyzers 1 | . . . . . 1 . . . Garrison Access 2 | . . . . . 1 . 1 . Total Hacks 80 | . 8 . 50 . 11 6 5 . Successful 64 | . 4 . 50 . 6 . 4 . Failed 16 | . 4 . . . 5 6 1 . Catastrophic 5 | . . . . . 2 2 1 . Database Lockouts . | . . . . . . . . . Manual 13 | . 6 . 1 . 3 . 3 . Terminals 21 | . 8 . . . 3 6 4 . Fabricators . | . . . . . . . . . Repair Stations . | . . . . . . . . . Recycling Units . | . . . . . . . . . Scanalyzers 7 | . . . . . 7 . . . Garrison Access 2 | . . . . . 1 . 1 . Terminal Hacks 52 | . 1 . 50 . . . 1 . Record 49 | . . . 49 . . . . . Robot Analysis 1 | . . . . . . . 1 . Locate Traps 1 | . 1 . . . . . . . Proto ID Catalog 1 | . . . 1 . . . . . Fabricator Hacks . | . . . . . . . . . Repair Station Hacks . | . . . . . . . . . Recycling Unit Hacks . | . . . . . . . . . Scanalyzer 5 | . . . . . 5 . . . Insert Component 2 | . . . . . 2 . . . Analyze 2 | . . . . . 2 . . . Retrieve Study 1 | . . . . . 1 . . . Garrison Access Hacks 2 | . . . . . 1 . 1 . Unlock Access 2 | . . . . . 1 . 1 . Unauthorized Hacks 5 | . 3 . . . . . 2 . Terminals 5 | . 3 . . . . . 2 . Botnet 3 | . 2 . . . . . 1 . Operators 1 | . . . . . . . 1 . Skim 1 | . 1 . . . . . . . Fabricators . | . . . . . . . . . Repair Stations . | . . . . . . . . . Recycling Units . | . . . . . . . . . Scanalyzers . | . . . . . . . . . Garrison Access . | . . . . . . . . . Data Cores Recovered 1 | . 1 . . . . . . . Used . | . . . . . . . . . Hacking Detections 9 | . 3 . . . 2 3 1 . Full Trace Events 2 | . . . . . . 2 . . Feedback Events . | . . . . . . . . . Feedback Blocked . | . . . . . . . . . Robot Schematics Acquired . | . . . . . . . . . Robots Built . | . . . . . . . . . Authchips . | . . . . . . . . . Time . | . . . . . . . . . Total Robot Build Rating . | . . . . . . . . . Part Schematics Acquired 2 | . . . . . 2 . . . Parts Built . | . . . . . . . . . Authchips . | . . . . . . . . . Time . | . . . . . . . . . Total Part Build Rating . | . . . . . . . . . Part Studies Acquired 1 | . . . . . 1 . . . Parts Repaired . | . . . . . . . . . Time . | . . . . . . . . . Parts Recycled . | . . . . . . . . . Recycled Matter . | . . . . . . . . . Retrieved Matter . | . . . . . . . . . Retrieved Components . | . . . . . . . . . Parts Scanalyzed 2 | . . . . . 2 . . . Part Schematics Acquired 2 | . . . . . 2 . . . Parts Damaged . | . . . . . . . . . Bothacking | -11 -10 -10 -10 -9 -8 -8 -8 -8 ------------ Run | Yrd Mat Min Exi Min Mat Gar Mat Gar Used RIF Installer 2 | . . . . . . 1 . 1 Zone Cloak 1 | . . . . . . . . 1 Robots Hacked 8 | . . . 4 . . . . 4 Non-combat 3 | . . . 3 . . . . . Combat 5 | . . . 1 . . . . 4 Robot Hacks Applied 9 | . . . 5 . . . . 4 parse_system 5 | . . . 5 . . . . . scatter_targeting 1 | . . . . . . . . 1 streamctrl_high 1 | . . . . . . . . 1 formatsys_high 2 | . . . . . . . . 2 Relay Couplers Released 9 | . . . . . . 9 . . Machine Destruction 9 | . . . . . . 9 . . Attached 2 | . . . . . . . . 2 Fabnet Peak Effective % . | . . . . . . . . . Robots Rewired 6 | . . . . . . . . 6 Allies Hacked . | . . . . . . . . . Hacks Repelled . | . . . . . . . . . Allies | -11 -10 -10 -10 -9 -8 -8 -8 -8 -------- Run | Yrd Mat Min Exi Min Mat Gar Mat Gar Total Allies 13 | . . 3 . 1 . . . 9 Largest Group 6 | . . 3 3 4 4 . . 6 Highest-Rated Group 70 | . . 40 39 70 70 . . 45 Highest-Rated Ally 31 | . . 16 16 31 31 . . 16 Total Orders . | . . . . . . . . . Ally Attacks 95 | . . 11 . 12 35 . . 37 Total Damage 952 | . . 133 . 127 447 . . 245 Kills 10 | . . 1 . 2 5 . . 2 Allies Corrupted . | . . . . . . . . . Allies Melted . | . . . . . . . . . Intel | -11 -10 -10 -10 -9 -8 -8 -8 -8 ------- Run | Yrd Mat Min Exi Min Mat Gar Mat Gar Active Infowar (turns) 5861 | 36 221 918 758 209 1052 1854 199 614 Optics 3635 | . . . . . 968 1854 199 614 Terrain 482 | . . . . . 482 . . . Seismic 2299 | 36 221 918 758 209 157 . . . Machine Analysis 3713 | . . . . . 1046 1854 199 614 Robot Analysis Total 1 | . . . . . . . 1 . Derelict Logs Recovered 1 | . . 1 . . . . . . Drone Launches . | . . . . . . . . . Drone Recoveries . | . . . . . . . . . Exploration | -11 -10 -10 -10 -9 -8 -8 -8 -8 ------------- Run | Yrd Mat Min Exi Min Mat Gar Mat Gar Turns Passed 5952 | 126 221 918 758 210 1052 1854 199 614 Spaces Moved 4033 | 66 220 860 711 182 607 1008 68 311 Core 4 | 1 . . . . . . . 3 Treads . | . . . . . . . . . Legs . | . . . . . . . . . Wheels 4029 | 65 220 860 711 182 607 1008 68 308 Hover . | . . . . . . . . . Flight . | . . . . . . . . . Fastest Speed 50 | 50 90 90 90 105 105 105 130 115 Average Speed 115 | 88 90 90 101 105 125 145 130 127 Slowest Speed 850 | 90 90 90 105 105 145 155 130 850 Overloaded Moves . | . . . . . . . . . Propulsion Burnouts . | . . . . . . . . . Robots Hopped . | . . . . . . . . . Potential Cave-ins . | . . . . . . . . . Cave-ins Triggered . | . . . . . . . . . Exploration Rate (%) 49 | 3 45 99 93 37 47 77 14 30 Regions Visited 8 Branch Regions 3 Pre-discovered Areas 2 | . . 1 1 . . . . . Known Exits Taken 2 | . . . . . 1 . 1 . Unknown Exits Taken 5 | 1 1 1 1 1 . . . . Scrap Searched 1 | . . 1 . . . . . . Spaces Dug 5 | . . . . . 5 . . . Terrain Destroyed 99 | . . 12 . 13 59 . 7 8 Melee . | . . . . . . . . . Projectile 13 | . . 2 . . 4 . 7 . AOE 86 | . . 10 . 13 55 . . 8 Terrain Rammed . | . . . . . . . . . Walls Destroyed . | . . . . . . . . . Machines Disabled . | . . . . . . . . . Actions | -11 -10 -10 -10 -9 -8 -8 -8 -8 --------- Run | Yrd Mat Min Exi Min Mat Gar Mat Gar Total 4909 | 95 233 966 745 195 798 1299 124 454 Wait 318 | . . 74 20 5 66 113 17 23 Move 4027 | 65 219 859 710 181 607 1007 68 311 Hop . | . . . . . . . . . Pick Up 73 | 6 5 3 5 3 25 15 3 8 Fast Attach 17 | 7 . . . . 2 2 1 5 Attach 28 | . . 2 . 1 10 6 . 9 Detach 6 | . . . . . 1 1 . 4 Swap 45 | . 1 4 3 2 16 9 1 9 Drop 47 | . 3 4 2 . 15 15 3 5 Fire 231 | 17 5 20 . 3 56 65 30 35 Melee 36 | . . . 5 . . 1 . 30 Ram 1 | . . . . . . . 1 . Kick . | . . . . . . . . . Crush . | . . . . . . . . . Escape Stasis 78 | . . . . . . 64 . 14 Rewire 2 | . . . . . . 1 . 1 Trap . | . . . . . . . . . Miscellaneous . | . . . . . . . . . Route ------- -11/Scrapyard -10/Materials (discovered 3 exits: [*Mat] / [*Min x2]) -10/Mines (discovered 4 exits: [*Mat x2] / *Exi / [*Sub]) -10/Exiles -9/Mines (discovered 2 exits: *Mat x2) -8/Materials (discovered 3 exits: [*Fac x2] / Gar) -8/Garrison (discovered 3 exits: *Mat x3) -8/Materials -8/Garrison History --------- Turn | Location | Event 27 | -11/Scrapyard | Discovered new exit (range 16) 127 | -11/Scrapyard | Entered Materials 215 | -10/Materials | Discovered new exit (range 6) 277 | -10/Materials | Discovered new exit (range 16) 306 | -10/Materials | Build established: Mutant 329 | -10/Materials | Discovered new exit (range 14) 348 | -10/Materials | Entered Mines 358 | -10/Mines | Assisted by bots powering up and referring to "LRC-V3" 610 | -10/Mines | Discovered new exit (range 13) 794 | -10/Mines | Joined a pair of Derelicts in attacking an 0b10 outpost 869 | -10/Mines | A weapon hastily lodged in a ceiling crevice suddenly fell to the ground 889 | -10/Mines | Learned location of Mines (-9) 889 | -10/Mines | Discovered new exit (range 14) 1044 | -10/Mines | Deemed a non-threat by the Exiles lab entrance 1045 | -10/Mines | Discovered new exit (range 5) 1141 | -10/Mines | Discovered new exit (range 5) 1266 | -10/Mines | Entered Exiles 1266 | -10/Exiles | Accompanied by 3 allies 1296 | -10/Exiles | Met 8R-AWN 1322 | -10/Exiles | Met EX-HEX 1355 | -10/Exiles | Met EX-BIN 1388 | -10/Exiles | Met EX-DEC 1642 | -10/Exiles | Visited The Gauntlet 1779 | -10/Exiles | Learned location of Zion (-6) 1847 | -10/Exiles | Aligned with FarCom system 1848 | -10/Exiles | Given EX-Vault access code 1900 | -10/Exiles | Opened EX-Vault 1906 | -10/Exiles | Found Trap Reconfigurator 1928 | -10/Exiles | Warned to stay clear of 0b10 Research branches 1944 | -10/Exiles | Exiles lab attacked by MAIN.C 1993 | -10/Exiles | Discovered new exit (range 14) 2024 | -10/Exiles | Left Exiles lab with Trap Reconfigurator 2024 | -10/Exiles | Entered Mines 2024 | -9/Mines | Accompanied by 3 allies 2048 | -9/Mines | Discovered new exit (range 15) 2182 | -9/Mines | Found a Scrap Suit stashed away for nefarious purposes 2184 | -9/Mines | Found Scrap Suit 2216 | -9/Mines | Discovered new exit (range 10) 2219 | -9/Mines | Received a Mining Laser from a helpful Derelict 2234 | -9/Mines | Entered Materials 2234 | -8/Materials | Accompanied by 4 allies 2234 | -8/Materials | Evolved 4 slots: Utility x4 2440 | -8/Materials | Lost 3 allies 2576 | -8/Materials | Destroyed 8 combat bots 2624 | -8/Materials | Build established: Skirmisher 2655 | -8/Materials | Discovered new exit (range 19) 3046 | -8/Materials | Discovered new exit (range 17) 3285 | -8/Materials | Identified exit to Garrison 3286 | -8/Materials | Entered Garrison 3516 | -8/Garrison | Triggered checkpoint 3686 | -8/Garrison | Triggered checkpoint 3708 | -8/Garrison | Destroyed 7 combat bots 3978 | -8/Garrison | Discovered new exit (range 11) 4016 | -8/Garrison | Triggered checkpoint 4166 | -8/Garrison | Triggered checkpoint 4255 | -8/Garrison | Discovered new exit (range 13) 4356 | -8/Garrison | Triggered checkpoint 4554 | -8/Garrison | Triggered checkpoint 4601 | -8/Garrison | Discovered new exit (range 19) 4637 | -8/Garrison | Installed Relay Interface Framework 4676 | -8/Garrison | Triggered checkpoint 4718 | -8/Garrison | Garrison Relay disabled 5031 | -8/Garrison | Build established: Bothacker-Skirmisher 5067 | -8/Garrison | Garrison Relay disabled 5133 | -8/Garrison | System corruption reached 10% 5140 | -8/Garrison | Entered Materials 5264 | -8/Materials | Garrison activated, responded to threat 5289 | -8/Materials | Core integrity fell below 50% 5339 | -8/Materials | Identified exit to Garrison 5339 | -8/Materials | Entered Garrison 5355 | -8/Garrison | Triggered checkpoint 5437 | -8/Garrison | Lost 4 parts (1p1n1u1w) 5727 | -8/Garrison | Expanded RIF knowledge: Zone Cloak 5763 | -8/Garrison | Triggered checkpoint 5804 | -8/Garrison | Triggered checkpoint 5811 | -8/Garrison | Triggered checkpoint 5820 | -8/Garrison | Triggered checkpoint 5866 | -8/Garrison | Lost 8 allies 5926 | -8/Garrison | Core integrity fell below 20% 5953 | -8/Garrison | Destroyed by G-47 Trooper with Particle Gun Last Messages --------------- 05891_ System corrupted: Substantial component data lost. 05893_ Acquired Rnf. Ion Engine. 05894_ Dropped Kinecellerator. 05894_ Dropped Machine Analyzer. 05895_ Discarded Imp. Heat Sink. 05898_ Sneak attack on C-45 Heavy ARC. 05898_ C-45 Heavy ARC Imp. Ion Engine severed. 05901_ Sneak attack on C-45 Heavy ARC. 05901_ C-45 Heavy ARC destroyed. 05904_ Sneak attack on C-45 Heavy ARC. 05907_ Destroyed Imp. Ion Engine. 05910_ Sneak attack on C-45 Heavy ARC. 05913_ C-45 Heavy ARC destroyed. 05914_ EZPP1W< Q ZVLNNUSSRH 05924_ Critical hit (Burn: +37). 05936_ G-50 Soldier Hvy. Laser severed. 05944_ G-47 Trooper destroyed. 05945_ Greatsword destroyed. 05949_ S